bitfinex/quotes_ETHUSD_20240916
["timestamp","ask_amount","ask_price","bid_price","bid_amount"]
[1726481475591,4.35606,2295.7,2295.4,2.4454]
[1726481475745,4.35606,2295.7,2295.5,3.91549213]
[1726481476651,4.35625,2295.6,2295.4,2.4454]
[1726481478645,8.71217,2295.7,2295.5,3.91549213]
[1726481478852,4.35568,2295.9,2295.5,3.91549213]
[1726481479078,4.35561,2295.9,2295.7,3.91549213]
[1726481480295,4.35561,2295.9,2295.7,4.54793134]
[1726481480671,8.71057,2296.1,2295.7,4.54793134]
[1726481480875,4.35553,2296.0,2295.7,4.54793134]
[1726481481098,4.35504,2296.2,2295.9,3.91549213]
[1726481481611,4.35477,2296.4,2296.1,3.91549213]
[1726481481815,8.70957,2296.4,2296.2,0.39154921]
[1726481482001,8.70957,2296.4,2296.1,6.40909213]
[1726481482186,8.70957,2296.4,2296.3,0.09514924]
[1726481482509,8.70957,2296.4,2296.1,6.40909213]
[1726481482510,4.35483,2296.3,2296.1,6.40909213]
[1726481482878,4.35483,2296.3,2296.1,7.39545564]
[1726481483074,4.35483,2296.3,2296.2,0.09514924]
[1726481490685,11.02936,2296.3,2296.2,0.09514924]
[1726481491223,4.35527,2296.1,2295.8,6.28499213]
[1726481491528,4.35527,2296.1,2295.8,8.81006604]
[1726481492300,8.71059,2296.1,2295.8,8.81006604]
[1726481492616,4.35527,2296.1,2295.8,8.81006604]
[1726481494032,4.35527,2296.1,2295.9,1.80651686]
[1726481494220,8.71059,2296.1,2295.9,1.80651686]
[1726481495016,4.35527,2296.1,2295.9,1.80651686]
[1726481498013,4.35505,2296.2,2295.9,1.80651686]
[1726481498309,4.35505,2296.2,2296.1,1.80651686]
[1726481498900,4.35505,2296.2,2296.1,1.9013243]
[1726481502903,4.35499,2296.3,2296.1,4.2700243]
[1726481503292,4.35493,2296.3,2296.1,4.2700243]
[1726481503917,4.35492,2296.3,2296.1,4.2700243]
[1726481505391,8.70988,2296.3,2296.1,4.2700243]
[1726481507910,4.35492,2296.3,2296.1,4.2700243]
[1726481508106,4.35502,2296.2,2296.1,4.2700243]
[1726481511239,4.35486,2296.3,2296.1,1.9013243]
[1726481511443,4.35464,2296.5,2296.2,2.4292]
[1726481511643,4.35473,2296.4,2296.3,1.80651686]
[1726481511847,4.35473,2296.4,2296.3,1.90136704]
[1726481512206,4.35473,2296.4,2296.3,1.89980391]
[1726481512401,4.35452,2296.5,2296.3,1.89980391]
[1726481513143,4.35415,2296.7,2296.4,2.2679]
[1726481513442,4.35415,2296.7,2296.5,1.80651686]
[1726481513657,4.35415,2296.7,2296.5,1.9010894]
[1726481515926,9.27651686,2297.5,2296.8,6.83678]
[1726481515927,2.3197,2297.3,2296.8,6.83678]
[1726481516132,2.3197,2297.3,2297.0,1.80651686]
[1726481516133,4.35339,2297.1,2297.0,1.80651686]
[1726481516752,4.35339,2297.1,2297.0,1.90039527]
[1726481517126,16.418192,2297.1,2297.0,0.09387841]
[1726481517560,4.35426,2296.6,2296.5,1.80651686]
[1726481517872,4.35426,2296.6,2296.5,1.8971298]
[1726481518056,8.70852,2296.6,2296.5,0.09061294]
[1726481518234,8.70852,2296.6,2296.1,10.63939901]
[1726481518433,8.70852,2296.6,2296.5,0.0901753]
[1726481518768,4.35463,2296.5,2296.1,6.28419901]
[1726481518954,2.2554,2296.8,2296.3,3.91269901]
[1726481519270,4.35426,2296.6,2296.4,2.4893]
[1726481519444,4.35426,2296.6,2296.5,3.91269901]
[1726481519966,4.35426,2296.6,2296.4,2.4893]
[1726481520734,8.70839,2296.7,2296.5,3.91269901]
[1726481520945,8.70839,2296.7,2296.4,2.4893]
[1726481521266,8.70839,2296.7,2296.3,3.91269901]
[1726481521267,4.35445,2296.5,2296.3,3.91269901]
[1726481521592,6.60938,2296.8,2296.4,2.3167]
[1726481521767,4.35415,2296.7,2296.5,4.97111691]
[1726481522066,4.35415,2296.7,2296.5,3.91269901]
[1726481522672,4.35426,2296.6,2296.4,2.3167]
[1726481524233,4.35415,2296.7,2296.4,2.3167]
[1726481524432,4.35415,2296.7,2296.5,3.91269901]
[1726481525674,4.35373,2296.9,2296.6,2.3948]
[1726481525879,4.35373,2296.9,2296.7,3.91269901]
[1726481526177,7.47,2297.4,2296.7,3.91269901]
[1726481526349,4.35326,2297.2,2296.8,2.3615]
[1726481526552,4.35331,2297.1,2296.8,2.3615]
[1726481528364,4.35331,2297.1,2296.9,0.09041285]
[1726481529356,4.3535,2297.0,2296.9,0.09041285]
[1726481530456,4.35331,2297.1,2296.9,0.09041285]
[1726481530657,8.70673,2297.1,2296.9,0.09041285]
[1726481531004,8.70676,2297.1,2296.9,0.09041285]
[1726481531160,4.35331,2297.1,2296.9,0.09041285]
[1726481531773,8.70673,2297.1,2296.9,0.09041285]
[1726481531991,4.35331,2297.1,2296.9,4.63957305]
[1726481532357,8.70675,2297.1,2296.9,0.72687404]
[1726481532808,4.35331,2297.1,2296.9,0.72687404]
[1726481533698,4.35314,2297.2,2297.0,0.3088374]
[1726481534006,4.35314,2297.2,2297.0,0.39880195]
[1726481535287,4.35314,2297.2,2297.0,0.08996455]
[1726481536560,4.35331,2297.1,2297.0,0.08996455]
[1726481538013,4.35313,2297.2,2297.0,0.08996455]
[1726481540309,4.35331,2297.1,2297.0,0.08996455]
[1726481541702,4.35297,2297.3,2297.0,0.08996455]
[1726481542114,4.35321,2297.2,2297.0,0.08996455]
[1726481542318,4.35321,2297.2,2297.1,2.4349]
[1726481542477,8.70608,2297.3,2297.1,2.4349]
[1726481542683,4.35297,2297.3,2297.1,2.52480052]
[1726481542877,8.70601,2297.3,2297.1,2.52480052]
[1726481543697,4.35297,2297.3,2297.1,2.52480052]
[1726481544426,8.70605,2297.3,2297.1,2.52480052]
[1726481545299,4.35297,2297.3,2297.1,2.52480052]
[1726481546121,8.706,2297.3,2297.1,6.43749953]
[1726481546620,0.0377383,2297.6,2297.3,2.3772]
[1726481546790,0.0377383,2297.6,2297.5,3.91269901]
[1726481546791,4.3900983,2297.6,2297.5,3.91269901]
[1726481547185,0.0377383,2297.6,2297.5,3.91269901]
[1726481547383,0.0377383,2297.6,2297.5,4.63109847]
[1726481547609,0.0377383,2297.6,2297.5,11.47204847]
[1726481548283,0.0377383,2297.6,2297.5,15.82459847]
[1726481548734,0.0377383,2297.6,2297.5,7.11949847]
[1726481549087,0.0377383,2297.6,2297.5,11.47204847]
[1726481551024,0.0377383,2297.6,2297.5,15.82459847]
[1726481551237,0.0377383,2297.6,2297.5,11.47204847]
[1726481552191,0.0377383,2297.6,2297.5,15.82459847]
[1726481552393,0.0377383,2297.6,2297.5,11.47204847]
[1726481552913,0.0377383,2297.6,2297.5,15.82459847]
[1726481553109,0.0377383,2297.6,2297.5,11.47204847]
[1726481553800,0.0377383,2297.6,2297.5,15.82459847]
[1726481554988,4.35124,2298.2,2297.8,2.3708]
[1726481555190,4.35124,2298.2,2298.1,3.91269901]
[1726481555703,4.35124,2298.2,2298.1,4.0009671]
[1726481556326,0.0377383,2298.3,2298.1,4.0009671]
[1726481556638,0.0377383,2298.3,2298.2,2.77089671]
[1726481557129,0.0377383,2298.3,2298.2,2.85842889]
[1726481557423,0.0377383,2298.3,2298.2,7.20965889]
[1726481558418,0.0377383,2298.3,2298.2,2.85842889]
[1726481558620,0.0377383,2298.3,2298.2,7.20965889]
[1726481560490,0.0377383,2298.3,2298.2,11.66119466]
[1726481561131,0.0377383,2298.3,2298.2,11.57418889]
[1726481561530,0.0377383,2298.3,2298.2,7.22295889]
[1726481563593,2.3071383,2298.9,2298.4,4.35075]
[1726481563594,4.3876483,2298.9,2298.4,4.35075]
[1726481563794,4.3876483,2298.9,2298.5,6.44524246]
[1726481563795,4.35026,2298.8,2298.5,6.44524246]
[1726481564294,4.3876483,2298.9,2298.5,6.44524246]
[1726481564796,4.35012,2298.8,2298.5,6.44524246]
[1726481565008,4.35012,2298.8,2298.6,0.64452425]
[1726481565204,4.35012,2298.8,2298.7,0.08287278]
[1726481568658,4.35009,2298.8,2298.7,0.08287278]
[1726481568859,6.66979,2298.8,2298.7,0.08287278]
[1726481569056,6.66979,2298.8,2298.4,3.91269901]
[1726481569348,6.66979,2298.8,2298.7,0.0827982]
[1726481569559,6.66979,2298.8,2298.4,4.61659768]
[1726481569720,6.66979,2298.8,2298.7,0.08280885]
[1726481570053,6.66979,2298.8,2298.7,0.0827982]
[1726481570219,2.3197,2298.8,2298.4,4.61659768]
[1726481570419,6.66979,2298.8,2298.5,1.20833897]
[1726481571040,6.66979,2298.8,2298.5,0.0827982]
[1726481571446,4.35037,2298.7,2298.5,0.0827982]
[1726481572036,11.01998,2298.8,2298.5,0.0827982]
[1726481572242,6.66979,2298.8,2298.6,3.91269901]
[1726481572853,6.66979,2298.8,2298.7,0.0827982]
[1726481574236,4.35009,2298.8,2298.7,0.0827982]
[1726481574463,6.6723383,2298.9,2298.7,0.0827982]
[1726481574669,4.35009,2298.8,2298.7,0.0827982]
[1726481575573,6.6723383,2298.9,2298.7,0.0827982]
[1726481575770,4.3876383,2298.9,2298.7,0.0827982]
[1726481576077,0.0377383,2298.9,2298.7,0.0827982]
[1726481576272,4.3876983,2298.9,2298.7,0.0827982]
[1726481576564,4.3876983,2298.9,2298.8,3.91269901]
[1726481576740,0.0377383,2298.9,2298.8,3.91269901]
[1726481576943,4.3876383,2298.9,2298.8,3.99552915]
[1726481577137,8.7375383,2298.9,2298.8,0.08283014]
[1726481577339,4.35012,2298.8,2298.4,6.90789768]
[1726481577557,4.35012,2298.8,2298.5,1.12589177]
[1726481578258,4.35012,2298.8,2298.6,3.91269901]
[1726481578672,4.3876583,2298.9,2298.7,2.4578]
[1726481578866,0.0377383,2298.9,2298.8,3.91269901]
[1726481581075,0.0377383,2298.9,2298.7,2.4578]
[1726481581241,4.3501,2298.8,2298.6,3.91269901]
[1726481582278,4.3501,2298.8,2298.6,5.14844896]
[1726481582453,0.0377383,2298.9,2298.6,5.14844896]
[1726481582654,4.3876783,2298.9,2298.6,5.14844896]
[1726481583242,0.0377383,2298.9,2298.7,2.4557]
[1726481583751,0.0377383,2298.9,2298.8,3.91269901]
[1726481584665,0.0377383,2298.9,2298.6,3.91269901]
[1726481584980,4.3876383,2298.9,2298.6,3.91269901]
[1726481585371,0.0377383,2298.9,2298.6,3.91269901]
[1726481585587,0.0377383,2298.9,2298.6,5.47269678]
[1726481585740,0.0377383,2298.9,2298.8,3.91269901]
[1726481586436,0.0377383,2298.9,2298.8,6.19799901]
[1726481586742,0.0377383,2298.9,2298.8,3.91269901]
[1726481586978,2.3574383,2298.9,2298.6,10.69113901]
[1726481587288,0.0377383,2298.9,2298.8,3.91269901]
[1726481588385,0.0377383,2298.9,2298.8,3.98978143]
[1726481589969,0.0377383,2298.9,2298.8,1.87899671]
[1726481590277,0.0377383,2298.9,2298.8,2.87162906]
[1726481593881,0.0377383,2298.9,2298.8,5.33412906]
[1726481595517,0.0377383,2298.9,2298.8,14.12130254]
[1726481595678,0.0377383,2298.9,2298.8,13.12867019]
[1726481596514,0.0377383,2298.9,2298.8,13.72571978]
[1726481596805,0.0377383,2298.9,2298.8,13.72565846]
[1726481597012,0.0377383,2298.9,2298.8,14.75104499]
[1726481597250,0.0377383,2298.9,2298.8,18.29116868]
[1726481597382,0.0377383,2298.9,2298.8,18.68739805]
[1726481597579,0.0377383,2298.9,2298.8,16.75255868]
[1726481597995,0.0377383,2298.9,2298.8,18.6871943]
[1726481598421,0.0377383,2298.9,2298.8,18.68833887]
[1726481600332,0.0377383,2298.9,2298.8,17.69512413]
[1726481600527,0.0377383,2298.9,2298.8,18.68834248]
[1726481600735,0.0377383,2298.9,2298.8,18.09135381]
[1726481600882,0.0377383,2298.9,2298.8,18.2921128]
[1726481601224,0.0377383,2298.9,2298.8,18.68834248]
[1726481601586,0.0377383,2298.9,2298.8,23.03843248]
[1726481601885,2.3574383,2299.6,2299.4,4.3488]
[1726481602088,0.0377383,2299.6,2299.5,1.80191429]
[1726481602286,0.0377383,2299.6,2299.5,17.38506461]
[1726481602483,0.0377383,2299.6,2299.5,12.94932954]
[1726481602725,0.0377383,2299.6,2299.5,14.24426249]
[1726481602888,0.0377383,2299.6,2299.5,18.59303249]
[1726481603230,0.0377383,2299.6,2299.5,19.6173934]
[1726481603557,0.0377383,2299.6,2299.5,19.61388212]
[1726481603685,0.0377383,2300.3,2300.1,4.34753]
[1726481603892,0.0377383,2300.3,2300.1,6.14944429]
[1726481604109,0.0377383,2300.3,2300.2,4.42342529]
[1726481604482,0.0377383,2300.3,2300.2,0.07598529]
[1726481606024,0.0377383,2300.3,2300.2,4.32921507]
[1726481606197,0.0377383,2300.3,2300.2,9.78762379]
[1726481607602,0.0377383,2300.3,2300.2,5.44018379]
[1726481608002,0.0377383,2300.3,2300.2,9.78762379]
[1726481609431,0.0377383,2300.3,2300.2,14.13506379]
[1726481610125,0.0377383,2300.3,2300.2,16.58886379]
[1726481610522,0.0377383,2300.3,2300.2,5.44018379]
[1726481610736,0.0377383,2300.3,2300.2,4.32921507]
[1726481611038,2.3574383,2300.3,2300.2,0.07598529]
[1726481611244,2.3574383,2300.3,2300.2,4.32921507]
[1726481611407,2.3574383,2300.3,2300.2,4.25322978]
[1726481611607,0.0377383,2300.3,2300.2,4.3217059]
[1726481611810,0.0377383,2300.3,2300.2,5.62340349]
[1726481616936,0.0377383,2300.3,2300.2,10.05778497]
[1726481618557,0.0377383,2300.3,2300.2,9.97084349]
[1726481618754,0.0377383,2300.3,2300.2,5.62340349]
[1726481619260,6.7046883,2300.3,2300.2,0.06847612]
[1726481619457,11.0519383,2300.3,2300.2,0.06847612]
[1726481619622,11.0519383,2300.3,2299.7,2.3155]
[1726481619623,2.3197,2300.0,2299.7,4.25322978]
[1726481619833,11.01559,2300.0,2299.7,4.25322978]
[1726481620144,11.0156,2300.0,2299.7,4.25322978]
[1726481620453,4.34802,2299.9,2299.7,4.25322978]
[1726481620652,11.01553,2300.0,2299.7,4.25322978]
[1726481620974,6.66757,2300.0,2299.7,4.25322978]
[1726481622470,4.3482,2299.8,2299.7,4.25322978]
[1726481622650,4.34839,2299.7,2299.5,4.25322978]
[1726481622852,2.3197,2299.7,2299.5,4.25322978]
[1726481623071,4.34873,2299.6,2299.3,4.25322978]
[1726481623363,4.34871,2299.6,2299.3,4.25322978]
[1726481623563,2.3197,2299.4,2299.3,4.25322978]
[1726481626372,6.66837,2299.6,2299.3,4.25322978]
[1726481630186,4.34831,2299.8,2299.5,4.25322978]
[1726481630488,4.34772,2300.1,2299.7,4.25322978]
[1726481630645,4.34772,2300.1,2299.9,4.25322978]
[1726481631029,6.66686,2300.4,2299.9,10.89884978]
[1726481631188,6.66686,2300.4,2300.1,4.25322978]
[1726481632182,4.3850883,2300.3,2300.1,4.25322978]
[1726481632380,0.0377383,2300.3,2300.1,4.25322978]
[1726481632580,4.34744,2300.2,2300.1,4.25322978]
[1726481632789,4.34744,2300.2,2299.9,4.25322978]
[1726481633147,4.34744,2300.2,2300.0,0.05864142]
[1726481633896,4.3851583,2300.3,2300.0,0.05864142]
[1726481634255,8.7324983,2300.3,2300.0,0.05864142]
[1726481634585,4.3850783,2300.3,2300.1,4.25322978]
[1726481634790,8.7324283,2300.3,2300.1,4.25322978]
[1726481634992,4.3850783,2300.3,2300.1,4.25322978]
[1726481635198,4.3850783,2300.3,2299.9,4.25322978]
[1726481635368,4.34744,2300.2,2299.9,4.25322978]
[1726481635575,4.3850783,2300.3,2299.9,4.25322978]
[1726481635775,4.3850783,2300.3,2300.1,4.25322978]
[1726481635971,0.0377383,2300.3,2300.1,4.25322978]
[1726481636169,0.0377383,2300.3,2300.1,6.67082978]
[1726481636567,4.3849983,2300.3,2300.1,6.67082978]
[1726481637692,0.0377383,2300.3,2300.1,6.67082978]
[1726481637898,0.0377383,2300.3,2300.2,1.10186498]
[1726481638063,0.0377383,2300.3,2300.1,11.01843978]
[1726481638781,0.0377383,2300.3,2300.1,6.67082978]
[1726481643117,0.0377383,2300.3,2300.1,4.25322978]
[1726481646074,0.0377383,2300.3,2300.2,6.83624]
[1726481646282,0.0377383,2300.3,2300.2,12.72738998]
[1726481648092,0.0377383,2300.3,2300.2,12.7852759]
[1726481653009,0.0377383,2300.3,2300.2,8.4378359]
[1726481653824,0.0377383,2300.3,2300.2,5.9490359]
[1726481655685,0.0377383,2300.3,2300.2,10.20226568]
[1726481657697,0.0377383,2300.3,2300.2,5.85482568]
[1726481657934,2.3574383,2300.3,2300.2,0.05788592]
[1726481658102,2.3574383,2300.3,2300.2,4.25322978]
[1726481658515,2.3574383,2300.3,2300.2,4.30982844]
[1726481659183,0.0377383,2300.3,2300.2,4.30982844]
[1726481661908,0.0377383,2300.3,2300.2,2.01966625]
[1726481662095,0.0377383,2300.3,2300.2,2.88540709]
[1726481665695,0.0377383,2300.3,2300.2,2.01966625]
[1726481666426,0.0377383,2300.3,2300.2,13.12084625]
[1726481674448,0.0377383,2300.3,2300.2,14.14212477]
[1726481674596,0.0377383,2300.3,2300.2,13.12084625]
[1726481674796,0.0377383,2300.3,2300.2,14.14212027]
[1726481674998,0.0377383,2300.3,2300.2,16.08249349]
[1726481675247,0.0377383,2300.3,2300.2,15.06121947]
[1726481675530,0.0377383,2300.3,2300.2,22.35896637]
[1726481676094,0.0377383,2300.3,2300.2,32.06876827]
[1726481676429,0.0377383,2300.3,2300.2,35.11274057]
[1726481676736,0.0377383,2300.3,2300.2,35.11250928]
[1726481678138,0.0377383,2300.3,2300.2,32.61026999]
[1726481678340,0.0377383,2300.3,2300.2,35.1133778]
[1726481678637,0.0377383,2300.3,2300.2,32.61121343]
[1726481678842,0.0377383,2300.3,2300.2,31.69847682]
[1726481679012,0.0377383,2300.3,2300.2,32.61117953]
[1726481679213,0.0377383,2300.3,2300.2,34.17468212]
[1726481679433,0.0377383,2300.3,2300.2,34.71718799]
[1726481679639,0.0377383,2300.3,2300.2,32.21521157]
[1726481679877,0.0377383,2300.3,2300.2,35.61124227]
[1726481680085,0.0377383,2300.3,2300.2,35.06871664]
[1726481680236,0.0377383,2300.3,2300.2,38.11344242]
[1726481680755,0.0377383,2300.3,2300.2,34.69843819]
[1726481681056,0.0377383,2300.3,2300.2,38.11347069]
[1726481682849,0.0377383,2300.3,2300.2,37.57095348]
[1726481683179,0.0377383,2300.3,2300.2,37.71744895]
[1726481683472,0.0377383,2300.3,2300.2,37.57095442]
[1726481683678,0.0377383,2300.3,2300.2,37.71744565]
[1726481683866,0.0377383,2300.3,2300.2,38.25995002]
[1726481686874,0.0377383,2300.3,2300.2,37.71744564]
[1726481687173,0.0377383,2301.0,2300.9,4.34612]
[1726481687377,0.0377383,2301.0,2300.9,6.30918759]
[1726481687679,0.0377383,2301.0,2300.9,6.36543534]
[1726481688542,0.0377383,2301.0,2300.9,2.01931534]
[1726481688775,6.7033683,2301.0,2300.9,0.05624775]
[1726481688940,11.0492983,2301.0,2300.9,0.05624775]
[1726481689286,11.0492983,2301.0,2300.7,1.96306759]
[1726481689287,2.3197,2300.8,2300.7,1.96306759]
[1726481689449,2.3197,2300.8,2300.4,8.78079855]
[1726481689652,2.3197,2300.8,2300.7,1.96306759]
[1726481689852,2.3197,2300.8,2300.7,2.59404835]
[1726481693256,2.3197,2300.8,2300.7,2.64801714]
[1726481697955,2.3197,2300.8,2300.7,2.01703638]
[1726481698188,2.3574383,2301.0,2300.7,2.01703638]
[1726481698396,0.0377383,2301.0,2300.9,1.96306759]
[1726481698555,8.69262,2300.8,2300.7,0.05396879]
[1726481698743,8.69262,2300.8,2300.5,1.96306759]
[1726481698744,6.66601,2300.8,2300.5,1.96306759]
[1726481698939,0.0377383,2301.0,2300.5,1.96306759]
[1726481698940,2.3197,2300.6,2300.5,1.96306759]
[1726481700459,2.3197,2300.6,2300.5,6.30994759]
[1726481700660,2.3197,2300.6,2300.5,3.33406235]
[1726481701485,2.3197,2300.6,2300.5,1.96306759]
[1726481702449,6.66602,2300.8,2300.5,1.96306759]
[1726481702788,6.66601,2300.8,2300.7,1.96306759]
[1726481705096,6.66601,2300.8,2300.4,4.34699]
[1726481705262,6.66601,2300.8,2300.6,1.96306759]
[1726481705899,6.6662,2300.7,2300.6,1.96306759]
[1726481706051,2.3197,2300.7,2300.6,1.96306759]
[1726481706847,6.66584,2300.9,2300.6,1.96306759]
[1726481707050,6.66584,2300.9,2300.8,1.96306759]
[1726481707250,2.3197,2300.9,2300.8,1.96306759]
[1726481707880,4.3836783,2301.0,2300.8,1.96306759]
[1726481708181,4.3836783,2301.0,2300.9,0.05063062]
[1726481710598,0.0377383,2301.0,2300.9,0.05063062]
[1726481710752,4.3836683,2301.0,2300.9,0.05063062]
[1726481711191,0.0377383,2301.0,2300.9,0.05063062]
[1726481713797,4.3836683,2301.0,2300.9,0.05063062]
[1726481714371,0.0377383,2301.0,2300.9,0.05063062]
[1726481714570,6.66545,2301.1,2301.0,5.3422617]
[1726481714899,6.66545,2301.1,2301.0,5.39288169]
[1726481715192,2.3197,2301.1,2301.0,5.39288169]
[1726481715414,2.3197,2301.1,2301.0,7.35594928]
[1726481716011,4.34563,2301.2,2301.0,7.35594928]
[1726481716295,11.01118,2301.1,2301.0,5.39288169]
[1726481716498,20.61808055,2301.1,2301.0,5.39288169]
[1726481716858,20.61808055,2301.1,2301.0,5.3422617]
[1726481716859,18.35692,2301.1,2301.0,5.3422617]
[1726481717090,21.0643161,2301.1,2301.0,5.3422617]
[1726481717701,30.08651635,2301.1,2301.0,5.3422617]
[1726481717862,4.3471,2300.4,2300.0,1.96306759]
[1726481718064,0.43471,2300.3,2300.0,1.96306759]
[1726481718290,4.34728,2300.3,2300.0,1.96306759]
[1726481718493,4.34763,2300.1,2300.0,1.96306759]
[1726481718805,4.34763,2300.1,2299.6,15.50642038]
[1726481718806,4.34791,2300.0,2299.8,1.96306759]
[1726481719974,4.34763,2300.1,2299.7,4.25581126]
[1726481720280,4.34741,2300.3,2299.7,4.25581126]
[1726481720281,4.34739,2300.3,2299.9,4.25581126]
[1726481720687,4.34748,2300.2,2299.9,4.25581126]
[1726481721581,4.34766,2300.1,2299.7,6.19570662]
[1726481721785,8.69426,2300.4,2299.9,8.60365126]
[1726481721974,4.3471,2300.4,2299.9,4.25581126]
[1726481722175,4.34728,2300.3,2299.9,4.25581126]
[1726481723397,4.34748,2300.2,2299.9,4.25581126]
[1726481723612,4.34748,2300.2,2299.6,14.13734]
[1726481723613,4.34774,2300.1,2299.7,4.25581126]
[1726481723799,4.34784,2300.0,2299.7,4.25581126]
[1726481724005,4.34784,2300.0,2299.6,9.7889]
[1726481724006,4.34686,2300.6,2299.5,4.25581126]
[1726481724319,8.69655,2299.8,2299.5,4.25581126]
[1726481724683,8.6966,2299.8,2299.5,4.25581126]
[1726481724876,8.69654,2299.8,2299.5,4.25581126]
[1726481725282,4.34853,2299.7,2299.3,4.25581126]
[1726481725876,4.34816,2299.9,2299.3,4.25581126]
[1726481726079,4.34833,2299.8,2299.3,4.25581126]
[1726481726312,8.69671,2299.8,2299.3,8.60495126]
[1726481726522,8.69671,2299.8,2299.3,5.78579939]
[1726481726523,4.34841,2299.7,2299.3,5.78579939]
[1726481727698,4.34858,2299.6,2299.3,5.78579939]
[1726481727911,4.34839,2299.7,2299.3,4.25581126]
[1726481728220,7.34724,2300.4,2299.5,4.25581126]
[1726481728221,4.34816,2299.9,2299.5,4.25581126]
[1726481728722,4.34823,2299.8,2299.5,4.25581126]
[1726481731800,4.34823,2299.8,2299.6,2.3862]
[1726481732895,4.34823,2299.8,2299.7,0.03892129]
[1726481734193,8.69636,2299.9,2299.7,0.03892129]
[1726481736021,4.3482,2299.8,2299.7,0.03892129]
[1726481736202,4.34816,2299.9,2299.7,0.03892129]
[1726481736411,8.6963,2299.9,2299.7,0.03892129]
[1726481736902,4.3482,2299.8,2299.7,0.03892129]
[1726481737090,4.34814,2299.9,2299.7,0.03892129]
[1726481737297,8.69625,2299.9,2299.7,0.03892129]
[1726481737497,4.34811,2299.9,2299.7,0.03892129]
[1726481737720,8.69622,2299.9,2299.7,0.03892129]
[1726481737936,4.34781,2300.1,2299.7,4.29473255]
[1726481738094,7.47,2300.5,2299.7,0.03892129]
[1726481738095,4.34817,2299.9,2299.7,0.03892129]
[1726481738294,4.348,2300.0,2299.7,0.03892129]
[1726481738490,4.34803,2299.9,2299.7,0.03892129]
[1726481741936,4.34784,2300.0,2299.8,1.96414483]
[1726481742304,4.34784,2300.0,2299.9,0.04004736]
[1726481748634,8.69574,2300.0,2299.9,0.04004736]
[1726481748957,4.34823,2299.8,2299.6,1.96414483]
[1726481749161,4.34839,2299.7,2299.4,2.3472]
[1726481749365,4.34839,2299.7,2299.4,4.31134483]
[1726481749366,4.34858,2299.6,2299.4,4.31134483]
[1726481749666,4.34766,2300.1,2299.1,4.34954483]
[1726481749667,4.34887,2299.5,2299.1,4.34954483]
[1726481750155,4.34904,2299.4,2299.1,4.34954483]
[1726481750362,4.34916,2299.3,2299.1,4.34954483]
[1726481750563,4.34916,2299.3,2299.1,1.96414483]
[1726481751432,4.34951,2299.2,2298.9,0.0377383]
[1726481751761,4.3496,2299.1,2298.9,0.0377383]
[1726481752261,4.34971,2299.0,2298.9,0.0377383]
[1726481754474,8.69942,2299.0,2298.9,0.0377383]
[1726481756710,4.34971,2299.0,2298.9,0.0377383]
[1726481757006,4.34952,2299.1,2299.0,4.91029]
[1726481757480,8.69904,2299.1,2299.0,4.91029]
[1726481766954,4.34952,2299.1,2299.0,4.91029]
[1726481767141,4.34936,2299.2,2299.0,4.91029]
[1726481767440,4.34891,2299.5,2299.1,2.3966]
[1726481767596,4.3489,2299.5,2299.2,1.96414483]
[1726481767941,4.3489,2299.5,2299.2,2.75164956]
[1726481768531,8.69779,2299.5,2299.2,2.75164956]
[1726481768696,8.69775,2299.5,2299.2,2.75164956]
[1726481768907,4.34886,2299.5,2299.2,2.75164956]
[1726481769506,4.34886,2299.5,2299.4,1.96414483]
[1726481769740,4.3486,2299.6,2299.4,1.96414483]
[1726481770255,4.34877,2299.5,2299.4,1.96414483]
[1726481770610,4.3486,2299.6,2299.4,1.96414483]
[1726481770998,4.34877,2299.5,2299.4,1.96414483]
[1726481771328,4.3486,2299.6,2299.4,1.96414483]
[1726481771524,8.69732,2299.6,2299.4,1.96414483]
[1726481772533,4.3486,2299.6,2299.4,1.96414483]
[1726481773241,4.34829,2299.8,2299.4,4.98654279]
[1726481773594,4.34841,2299.7,2299.4,4.98654279]
[1726481774251,4.34858,2299.6,2299.4,3.02239796]
[1726481774415,4.34878,2299.5,2299.1,6.64525]
[1726481774607,4.34878,2299.5,2299.2,1.96414483]
[1726481776799,4.34858,2299.6,2299.2,1.96414483]
[1726481776998,4.34858,2299.6,2299.4,1.96414483]
[1726481777215,8.69733,2299.6,2299.4,1.96414483]
[1726481777665,8.69727,2299.6,2299.4,1.96414483]
[1726481777873,4.34858,2299.6,2299.4,1.96414483]
[1726481778863,4.34858,2299.6,2299.5,2.2629]
[1726481779433,4.34847,2299.7,2299.5,2.2629]
[1726481781519,4.34836,2299.8,2299.5,2.2629]
[1726481781766,4.34835,2299.8,2299.5,2.2629]
[1726481781953,8.69665,2299.8,2299.5,3.12049948]
[1726481782465,4.3483,2299.8,2299.5,3.12049948]
[1726481783025,4.34804,2299.9,2299.5,3.12049948]
[1726481783554,4.34804,2299.9,2299.6,3.34237526]
[1726481783868,4.34799,2300.0,2299.7,2.2809]
[1726481785511,4.34792,2300.0,2299.7,2.2809]
[1726481785785,8.69585,2300.0,2299.7,2.2809]
[1726481786744,4.34802,2299.9,2299.7,2.2809]
[1726481787014,4.34802,2299.9,2299.6,1.96414483]
[1726481790210,4.34792,2300.0,2299.8,4.43734483]
[1726481790211,4.34785,2300.0,2299.8,4.43734483]
[1726481790353,4.34783,2300.0,2299.8,4.43734483]
[1726481792287,2.2552636,2300.8,2299.8,1.96414483]
[1726481792641,2.70631632,2301.0,2300.2,1.96414483]
[1726481792642,4.34679,2300.6,2300.2,1.96414483]
[1726481792804,8.69425,2300.4,2300.2,1.96414483]
[1726481793004,4.34707,2300.4,2300.2,1.96414483]
[1726481795894,4.34779,2300.1,2299.7,7.4]
[1726481796110,4.34798,2300.0,2299.7,1.96414483]
[1726481796304,4.34804,2299.9,2299.7,1.96414483]
[1726481797199,4.3482,2299.8,2299.6,2.4975]
[1726481797408,4.3482,2299.8,2299.7,1.96414483]
[1726481798098,8.69614,2299.9,2299.7,1.96414483]
[1726481798298,4.34804,2299.9,2299.7,1.96414483]
[1726481800055,4.34804,2299.9,2299.6,6.75358449]
[1726481800194,4.34804,2299.9,2299.6,7.86383294]
[1726481802214,4.34804,2299.9,2299.8,4.83]
[1726481802635,4.34791,2300.0,2299.8,4.83]
[1726481802806,4.34801,2299.9,2299.8,4.83]
[1726481803414,7.47,2300.4,2299.8,10.28983386]
[1726481803415,8.69519,2300.2,2299.8,10.28983386]
[1726481803641,4.34765,2300.1,2299.9,2.4013]
[1726481804031,4.34754,2300.2,2300.0,4.25608449]
[1726481804227,4.34763,2300.1,2300.0,4.25608449]